Cogmind - Beta 9.4 @@@ ROGUE MODE // 2020.03.05 @ 18:16:21 Player: BlackCaro Result: Destroyed by H-77 Assassin with Coil Gun Performance ------------- Evolutions (6) 3000 Regions Visited (10) 2000 Robots Destroyed (22) 110 Value Destroyed (455) 455 Prototype IDs (6) 120 Alien Tech Used (0) 0 Bonus (0) 0 TOTAL SCORE: 5685 Bonus ------- None Cogmind --------- Core Integrity 0/1150 Matter 230/300 Energy 15/100 System Corruption 8% Temperature Cool (11) Movement Hovering (70) Location -4/Extension Parts ------- > --- POWER (2) -------- (None) > --- PROPULSION (4) --- Improved Gyrokinetic Inverter Improved Gyrokinetic Inverter > --- UTILITY (11) ----- Advanced Visual Processing Unit Advanced Signal Interpreter Advanced Terrain Scan Processor Hacking Suite Improved Hacking Suite > --- WEAPON (2) ------- (None) > --- INVENTORY (4) ---- VTOL Module Maneuvering Thrusters Hypervelocity Mass Driver Peak State ------------ > --- POWER ------------ Micro Nuclear Core Neutrino Core > --- PROPULSION ------- Improved VTOL Module Improved Cesium-ion Thruster Nuclear Pulse Thruster Field Propulsion Drive > --- UTILITY ---------- Experimental Heat Sink Advanced Cooling System Advanced Visual Processing Unit Advanced Signal Interpreter Advanced Terrain Scanner Advanced Terrain Scan Processor Improved Particle Charger Maneuvering Thrusters Reaction Control System Hacking Suite Improved Hacking Suite > --- WEAPON ----------- HERF Cannon > --- INVENTORY -------- Light Quantum Reactor Phase Gun Heavy Flak Cannon [Rating: 88] Favorites ----------- Power Micro Nuclear Core Engine Light Ion Engine Power Core Micro Nuclear Core Reactor Light Quantum Reactor Propulsion Flight Unit Leg Aluminum Leg Hover Unit Improved Gyrokinetic Inverter Flight Unit Flight Unit Utility Advanced Signal Interpreter Device Improved Sensor Array Storage Small Storage Unit Processor Advanced Signal Interpreter Hackware Hacking Suite Protection Improved Propulsion Shielding Weapon Light Assault Rifle Energy Gun Particle Gun Energy Cannon HERF Cannon Ballistic Gun Light Assault Rifle Ballistic Cannon Heavy Flak Cannon Launcher Grenade Launcher Special Weapon Mining Laser Build | -11 -10 -9 -8 -7 -6 -5 -4 -4 -4 -4 ------- Run | Scr Mat Mat Mat Fac Fac Fac Fac Was Fac Ext Slots Evolved 12 | . . 2 2 2 2 2 2 . . . Power 1 | . . . . . . 1 . . . . Propulsion 2 | . . 1 . 1 . . . . . . Utility 9 | . . 1 2 1 2 1 2 . . . Weapon . | . . . . . . . . . . . Parts Attached 92 | 6 13 8 15 12 . 17 5 1 11 4 Power 14 | 1 2 1 1 . . 3 . . 6 . Engine 2 | 1 1 . . . . . . . . . Core 11 | . 1 1 1 . . 3 . . 5 . Reactor 1 | . . . . . . . . . 1 . Propulsion 27 | 2 3 3 4 4 . 5 2 . 1 3 Treads . | . . . . . . . . . . . Leg 3 | 2 1 . . . . . . . . . Wheel . | . . . . . . . . . . . Hover 3 | . . . . . . . . . . 3 Flight 21 | . 2 3 4 4 . 5 2 . 1 . Utility 31 | 1 4 2 6 6 . 8 2 1 . 1 Device 16 | . 1 1 2 2 . 6 2 1 . 1 Storage 1 | . 1 . . . . . . . . . Processor 8 | 1 1 1 2 3 . . . . . . Hackware 2 | . . . . . . 2 . . . . Protection 4 | . 1 . 2 1 . . . . . . Artifact . | . . . . . . . . . . . Weapon 20 | 2 4 2 4 2 . 1 1 . 4 . Energy Gun 6 | . 2 . 2 . . . 1 . 1 . Energy Cannon 1 | . . . . . . . . . 1 . Ballistic Gun 4 | 2 1 . 1 . . . . . . . Ballistic Cannon 3 | . . . . . . 1 . . 2 . Launcher 3 | . . . 1 2 . . . . . . Special Weapon 3 | . 1 2 . . . . . . . . Impact Weapon . | . . . . . . . . . . . Slashing Weapon . | . . . . . . . . . . . Piercing Weapon . | . . . . . . . . . . . Special Melee Weapon . | . . . . . . . . . . . Unidentified Prototypes 4 | . . . 1 2 . 1 . . . . Parts Lost 27 | . 1 . 3 . . 7 . . 13 3 Power 5 | . . . . . . 1 . . 4 . Propulsion 10 | . . . 2 . . 2 . . 4 2 Utility 8 | . . . . . . 4 . . 3 1 Weapon 4 | . 1 . 1 . . . . . 2 . Highest Loss Streak 13 | . 1 . 1 . . 2 . . 13 3 Average Slot Usage (%) 73 | . 90 73 83 88 56 74 80 87 68 44 Core 6 | . 8 9 9 7 . 8 10 10 6 . Leg 1 | . 17 . . . . . . . . . Flight 20 | . 9 24 25 29 22 20 18 21 15 4 Device 13 | . 4 21 14 17 6 18 24 29 17 1 Processor 16 | . 9 4 26 19 20 17 15 15 15 15 Hackware 2 | . . . . . . 2 10 10 10 10 Protection 4 | . 4 6 3 7 6 3 . . . . Ballistic Gun 1 | . 17 . . . . . . . . . Special Weapon 1 | . 1 7 3 . . . . . . . Naked Turns . | . . . . . . . . . . . Heaviest Build 42 | 5 13 9 11 14 12 33 34 31 42 1 Greatest Support 35 | 20 20 12 14 14 14 35 31 31 31 34 Greatest Overweight (x) 3 | . 3 1 1 . . . 1 . 1 . Average Overweight (x) . | . . . . . . . . . . . Largest Inventory Capacity 6 | 4 6 4 4 4 4 4 4 4 4 4 Average Capacity 4 | 4 4 4 4 4 4 4 4 4 4 4 Most Carried 6 | 3 6 4 4 4 4 4 2 4 4 4 Average Carried 3 | 1 4 3 3 3 3 2 1 2 3 3 Final Capacity 4 | 4 4 4 4 4 4 4 4 4 4 4 Final Carried 4 | 3 4 4 4 3 4 1 2 4 4 3 Class Distribution -------------------- 53% | Scout 25% | Mutant 11% | Hacker-Mutant 9% | Hacker-Scout Dominant Class ---------------- Mutant | -10/Materials Mutant | -9/Materials Scout | -8/Materials Scout | -7/Factory Scout | -6/Factory Scout | -5/Factory Hacker-Mutant | -4/Factory Hacker-Scout | -4/Waste Hacker-Mutant | -4/Factory Hacker-Mutant | -4/Extension Resources | -11 -10 -9 -8 -7 -6 -5 -4 -4 -4 -4 ----------- Run | Scr Mat Mat Mat Fac Fac Fac Fac Was Fac Ext Matter Collected 969 | 270 100 . 129 . . 358 . . 112 . Remotely . | . . . . . . . . . . . Salvage Created 346 | 69 100 . 41 63 . 52 . . 21 . Parts 38 | 6 8 . 13 3 . 7 . . 1 . Haulers Intercepted . | . . . . . . . . . . . Recyclers Shooed . | . . . . . . . . . . . Parts Field Recycled . | . . . . . . . . . . . Retrieved Matter . | . . . . . . . . . . . Parts Self-Destructed . | . . . . . . . . . . . Prevented . | . . . . . . . . . . . Kills | -11 -10 -9 -8 -7 -6 -5 -4 -4 -4 -4 ------- Run | Scr Mat Mat Mat Fac Fac Fac Fac Was Fac Ext Combat Hostiles Destroyed 17 | . 2 . 6 3 . 5 . . 1 . Guns 4 | . 2 . 1 . . . . . 1 . Cannons 4 | . . . 2 . . 2 . . . . AOE 9 | . . . 3 3 . 3 . . . . Classes Destroyed 4 | 1 1 . 2 . . . . . . . Builder 2 | . . . 1 . . 1 . . . . Tunneler 3 | 3 . . . . . . . . . . Swarmer 14 | . . . 6 2 . 5 . . 1 . Grunt 3 | . 2 . . 1 . . . . . . Best Kill Streak 5 | 2 2 . 4 3 . 5 . . 1 . Combat Bots Only 4 | . 2 . 3 3 . 4 . . 1 . Max Kills in Single Turn 4 | 1 1 . 2 2 . 4 . . 1 . Gunslinging . | . . . . . . . . . . . Exploded 3 | . . . 1 2 . 3 . . . . Melee . | . . . . . . . . . . . Uniques/NPCs Destroyed . | . . . . . . . . . . . Combat | -11 -10 -9 -8 -7 -6 -5 -4 -4 -4 -4 -------- Run | Scr Mat Mat Mat Fac Fac Fac Fac Was Fac Ext Damage Taken 4100 | . 161 57 275 93 135 1326 . . 1062 991 Core 1859 | . 23 29 103 29 69 438 . . 340 828 Absorbed by Shields . | . . . . . . . . . . . Core Remaining (%) 86 | 100 90 92 81 95 91 56 . . . . Volleys Fired 51 | 7 7 15 8 2 . 8 . . 4 . Largest 2 | 2 2 1 2 1 . 1 . . 1 . Hottest 165 | 40 60 100 165 30 . 53 . . 88 . Shots Fired 62 | 10 13 15 12 2 . 8 . . 2 . Gun 29 | 10 13 . 5 . . . . . 1 . Cannon 9 | . . . . . . 8 . . 1 . Launcher 5 | . . . 3 2 . . . . . . Special 19 | . . 15 4 . . . . . . . Kinetic 29 | 10 10 . . . . 8 . . 1 . Thermal 28 | . 3 15 9 . . . . . 1 . Explosive 5 | . . . 3 2 . . . . . . Electromagnetic . | . . . . . . . . . . . Robot Hit Streak 14 | 5 13 . 14 2 . 4 . . 2 . Robot Miss Streak 8 | 2 . . 2 . . 8 . . 3 . Penetration Max . | . . . . . . . . . . . Secondary Targets 1 | . 1 . . . . . . . . . Max Gunslinging Chain 1 | . 1 . . . . . . . . . Shots Hit Robots 36 | 7 12 . 6 2 . 7 . . 2 . Core Hits 35 | 5 7 . 7 5 . 10 . . 1 . Critical Hits . | . . . . . . . . . . . Critical Kills . | . . . . . . . . . . . Critical Parts Destroyed . | . . . . . . . . . . . Melee Attacks . | . . . . . . . . . . . Impact . | . . . . . . . . . . . Slashing . | . . . . . . . . . . . Piercing . | . . . . . . . . . . . Sneak Attacks . | . . . . . . . . . . . Combat Hostiles . | . . . . . . . . . . . Follow-up Attacks . | . . . . . . . . . . . Damage Inflicted 1311 | 65 111 . 275 186 . 639 . . 35 . Guns 215 | 65 111 . 14 . . . . . 25 . Cannons 113 | . . . . . . 103 . . 10 . Explosions 935 | . . . 213 186 . 536 . . . . Melee . | . . . . . . . . . . . Ramming . | . . . . . . . . . . . Kinetic 255 | 65 77 . . . . 103 . . 10 . Thermal 657 | . 34 . 62 . . 536 . . 25 . Explosive 399 | . . . 213 186 . . . . . . Electromagnetic . | . . . . . . . . . . . Impact . | . . . . . . . . . . . Slashing . | . . . . . . . . . . . Piercing . | . . . . . . . . . . . Highest Corruption 8 | . . . . 2 1 . . 5 8 8 Average Corruption 4 | . . . . 2 1 . . 5 6 8 Corruption Purged . | . . . . . . . . . . . Effects 14 | . . . . 2 . . . 2 7 3 Message Errors 6 | . . . . 1 . . . 1 2 2 Matter Fused 2 | . . . . . . . . . 2 . Heat Flow Errors 2 | . . . . 1 . . . 1 . . Energy Discharges 2 | . . . . . . . . . 1 1 Weapon Failures 2 | . . . . . . . . . 2 . Overload Shots . | . . . . . . . . . . . Overflow Damage 93 | . . . . . . 93 . . . . Projectiles . | . . . . . . . . . . . Explosions 93 | . . . . . . 93 . . . . Melee . | . . . . . . . . . . . Knockbacks 7 | . . . . . . 7 . . . . Impact . | . . . . . . . . . . . Kinetic 4 | . . . . . . 4 . . . . Secondary 3 | . . . . . . 3 . . . . Self-Inflicted Damage 224 | . . . 9 19 . 196 . . . . Shots 4 | . . . 1 1 . 2 . . . . Rammed . | . . . . . . . . . . . Targets Rammed . | . . . . . . . . . . . Kicked . | . . . . . . . . . . . Crushed . | . . . . . . . . . . . Highest Temperature 276 | . 62 77 220 233 . 6 . 276 6 . Average Temperature 61 | . 33 25 113 122 . 2 . 119 4 . Received Heat Transfer 546 | . 99 36 27 9 51 135 . . 60 129 Effects 3 | . . . . 3 . . . . . . Interference 3 | . . . . 3 . . . . . . Siege Activations . | . . . . . . . . . . . Robots Corrupted . | . . . . . . . . . . . Combat Hostiles . | . . . . . . . . . . . Parts Fried . | . . . . . . . . . . . Impact Corruptions . | . . . . . . . . . . . Robots Melted . | . . . . . . . . . . . Combat Hostiles . | . . . . . . . . . . . Parts Melted 1 | . . . . . . 1 . . . . Heat Transferred 599 | . 75 . 137 . . 350 . . 37 . Parts Sabotaged . | . . . . . . . . . . . Parts Stolen . | . . . . . . . . . . . Parts Stripped . | . . . . . . . . . . . Power Chain Reactions . | . . . . . . . . . . . Missiles Intercepted . | . . . . . . . . . . . Alert | -11 -10 -9 -8 -7 -6 -5 -4 -4 -4 -4 ------- Run | Scr Mat Mat Mat Fac Fac Fac Fac Was Fac Ext Peak Influence 404 | 15 114 160 209 288 183 404 222 122 95 42 Average Influence 115 | 7 57 100 109 181 110 187 209 108 61 24 Maximum Alert Level 2 | . . . 1 1 . 2 1 . . . Low Security (%) 84 | 100 100 100 85 56 100 63 2 100 100 100 Level 1 12 | . . . 14 43 . 16 97 . . . Level 2 2 | . . . . . . 20 . . . . Level 3 . | . . . . . . . . . . . Level 4 . | . . . . . . . . . . . Level 5 . | . . . . . . . . . . . High Security . | . . . . . . . . . . . Max Security . | . . . . . . . . . . . Squads Dispatched 17 | . . 2 1 2 4 3 2 . 3 . Investigation 12 | . . 2 . 2 4 2 1 . 1 . Extermination 1 | . . . . . . 1 . . . . Reinforcement 4 | . . . 1 . . . 1 . 2 . Assault . | . . . . . . . . . . . Garrison . | . . . . . . . . . . . Intercept . | . . . . . . . . . . . Construction Impeded . | . . . . . . . . . . . Haulers Reinforced . | . . . . . . . . . . . Stealth | -11 -10 -9 -8 -7 -6 -5 -4 -4 -4 -4 --------- Run | Scr Mat Mat Mat Fac Fac Fac Fac Was Fac Ext Distress Signals 4 | . 1 1 . . 1 1 . . . . Communications Jammed . | . . . . . . . . . . . Distress Signals . | . . . . . . . . . . . Times Spotted 134 | . 8 15 15 14 8 37 4 5 19 9 Peak Tracking Total 14 | . 6 10 10 7 5 13 3 5 14 9 Tactical Retreats 19 | . 1 3 1 4 2 6 . . 2 . Traps | -11 -10 -9 -8 -7 -6 -5 -4 -4 -4 -4 ------- Run | Scr Mat Mat Mat Fac Fac Fac Fac Was Fac Ext Traps Triggered 3 | . . . . 1 1 . 1 . . . Indirectly . | . . . . . . . . . . . Trap Hack Attempts . | . . . . . . . . . . . Triggered . | . . . . . . . . . . . Disarmed 3 | . . 3 . . . . . . . . Reprogrammed 4 | . . . . 4 . . . . . . Reused . | . . . . . . . . . . . Traps Extracted . | . . . . . . . . . . . Installed . | . . . . . . . . . . . Triggered . | . . . . . . . . . . . Machines | -11 -10 -9 -8 -7 -6 -5 -4 -4 -4 -4 ---------- Run | Scr Mat Mat Mat Fac Fac Fac Fac Was Fac Ext Machines Disabled 2 | . . . . . . 2 . . . . Max in Single Turn 2 | . . . . . . 2 . . . . Machines Sabotaged . | . . . . . . . . . . . Garrisons Compromised . | . . . . . . . . . . . Overloaded Fab Kills . | . . . . . . . . . . . Fab Network Shutdowns . | . . . . . . . . . . . Hacking | -11 -10 -9 -8 -7 -6 -5 -4 -4 -4 -4 --------- Run | Scr Mat Mat Mat Fac Fac Fac Fac Was Fac Ext Machines Accessed 32 | . 3 6 2 6 6 3 1 . 5 . Terminals 21 | . 2 4 1 6 2 3 . . 3 . Fabricators 1 | . . . . . . . . . 1 . Repair Stations 3 | . . 1 . . 1 . 1 . . . Recycling Units 4 | . 1 . . . 2 . . . 1 . Scanalyzers 3 | . . 1 1 . 1 . . . . . Garrison Access . | . . . . . . . . . . . Total Hacks 90 | . 11 21 4 12 18 6 3 . 15 . Successful 58 | . 7 15 3 8 10 2 2 . 11 . Failed 32 | . 4 6 1 4 8 4 1 . 4 . Catastrophic 6 | . . 1 . 1 2 2 . . . . Database Lockouts . | . . . . . . . . . . . Manual . | . . . . . . . . . . . Terminals 55 | . 8 15 2 12 4 6 . . 8 . Fabricators 2 | . . . . . . . . . 2 . Repair Stations 8 | . . 2 . . 3 . 3 . . . Recycling Units 14 | . 3 . . . 6 . . . 5 . Scanalyzers 11 | . . 4 2 . 5 . . . . . Garrison Access . | . . . . . . . . . . . Terminal Hacks 32 | . 6 9 1 8 1 2 . . 5 . Record 2 | . 1 1 . . . . . . . . Prototype ID Bank 1 | . 1 . . . . . . . . . Open Door 1 | . . . . . . . . . 1 . Level Access Points 1 | . . . . 1 . . . . . . Branch Access Points 1 | . . 1 . . . . . . . . Emergency Access Points 4 | . . 1 . 2 . . . . 1 . Fabricator Index 1 | . . . . . . . . . 1 . Unreport Threat 1 | . . 1 . . . . . . . . Locate Traps 6 | . 2 1 . 3 . . . . . . Disarm Traps 1 | . . 1 . . . . . . . . Reprogram Traps 1 | . . . . 1 . . . . . . Dispatch Records 1 | . . . 1 . . . . . . . Maintenance Status 1 | . . 1 . . . . . . . . Surveillance Status 1 | . . . . . 1 . . . . . Recall Investigation 1 | . 1 . . . . . . . . . Registered Components 1 | . . . . . . . . . 1 . Zone Layout 7 | . 1 2 . 1 . 2 . . 1 . Fabricator Hacks 2 | . . . . . . . . . 2 . Load Schematic 1 | . . . . . . . . . 1 . Build 1 | . . . . . . . . . 1 . Repair Station Hacks 6 | . . 2 . . 2 . 2 . . . Scan Component 3 | . . 1 . . 1 . 1 . . . Repair 3 | . . 1 . . 1 . 1 . . . Recycling Unit Hacks 7 | . 1 . . . 2 . . . 4 . Recycle Component 2 | . . . . . 1 . . . 1 . Process 1 | . . . . . . . . . 1 . Report Inventory 1 | . . . . . . . . . 1 . Retrieve Matter 2 | . . . . . 1 . . . 1 . Retrieve Components 1 | . 1 . . . . . . . . . Scanalyzer 11 | . . 4 2 . 5 . . . . . Insert Component 6 | . . 2 1 . 3 . . . . . Analyze 5 | . . 2 1 . 2 . . . . . Garrison Access Hacks . | . . . . . . . . . . . Unauthorized Hacks . | . . . . . . . . . . . Terminals . | . . . . . . . . . . . Fabricators . | . . . . . . . . . . . Repair Stations . | . . . . . . . . . . . Recycling Units . | . . . . . . . . . . . Scanalyzers . | . . . . . . . . . . . Garrison Access . | . . . . . . . . . . . Data Cores Recovered . | . . . . . . . . . . . Used . | . . . . . . . . . . . Hacking Detections 23 | . 2 4 2 4 5 3 1 . 2 . Full Trace Events 13 | . . 3 . 2 4 2 1 . 1 . Feedback Events 1 | . . . . . 1 . . . . . Corruption 1 | . . . . . 1 . . . . . Feedback Blocked . | . . . . . . . . . . . Robot Schematics Acquired . | . . . . . . . . . . . Robots Built . | . . . . . . . . . . . Matter . | . . . . . . . . . . . Time . | . . . . . . . . . . . Total Robot Build Rating . | . . . . . . . . . . . Part Schematics Acquired 5 | . . 2 1 . 2 . . . . . Parts Built 2 | . . . . . . . . . 2 . Matter 168 | . . . . . . . . . 168 . Time 42 | . . . . . . . . . 42 . Total Part Build Rating 8 | . . . . . . . . . 8 . Parts Repaired 3 | . . 1 . . 1 . 1 . . . Time 132 | . . 38 . . 44 . 50 . . . Parts Recycled 2 | . . . . . 1 . . . 1 . Recycled Matter 183 | . . . . . . . . . 183 . Retrieved Matter 183 | . . . . . . . . . 183 . Retrieved Components 1 | . 1 . . . . . . . . . Parts Scanalyzed 5 | . . 2 1 . 2 . . . . . Part Schematics Acquired 5 | . . 2 1 . 2 . . . . . Parts Damaged . | . . . . . . . . . . . Bothacking | -11 -10 -9 -8 -7 -6 -5 -4 -4 -4 -4 ------------ Run | Scr Mat Mat Mat Fac Fac Fac Fac Was Fac Ext Used RIF Installer . | . . . . . . . . . . . Robots Hacked . | . . . . . . . . . . . Non-combat . | . . . . . . . . . . . Combat . | . . . . . . . . . . . Robot Hacks Applied . | . . . . . . . . . . . Relay Couplers Released . | . . . . . . . . . . . Robots Rewired . | . . . . . . . . . . . Allies Hacked . | . . . . . . . . . . . Hacks Repelled . | . . . . . . . . . . . Allies | -11 -10 -9 -8 -7 -6 -5 -4 -4 -4 -4 -------- Run | Scr Mat Mat Mat Fac Fac Fac Fac Was Fac Ext Total Allies . | . . . . . . . . . . . Largest Group . | . . . . . . . . . . . Highest-Rated Group . | . . . . . . . . . . . Highest-Rated Ally . | . . . . . . . . . . . Total Orders . | . . . . . . . . . . . Ally Attacks . | . . . . . . . . . . . Total Damage . | . . . . . . . . . . . Kills . | . . . . . . . . . . . Allies Corrupted . | . . . . . . . . . . . Allies Melted . | . . . . . . . . . . . Intel | -11 -10 -9 -8 -7 -6 -5 -4 -4 -4 -4 ------- Run | Scr Mat Mat Mat Fac Fac Fac Fac Was Fac Ext Robot Analysis Total . | . . . . . . . . . . . Derelict Logs Recovered . | . . . . . . . . . . . Drone Launches . | . . . . . . . . . . . Drone Recoveries . | . . . . . . . . . . . Exploration | -11 -10 -9 -8 -7 -6 -5 -4 -4 -4 -4 ------------- Run | Scr Mat Mat Mat Fac Fac Fac Fac Was Fac Ext Turns Passed 2551 | 112 274 248 203 332 566 350 96 75 209 86 Spaces Moved 4800 | 70 348 309 380 878 935 851 132 226 548 123 Core 5 | 5 . . . . . . . . . . Treads . | . . . . . . . . . . . Legs 174 | 65 109 . . . . . . . . . Wheels . | . . . . . . . . . . . Hover 82 | . . . . . . . . . . 82 Flight 4539 | . 239 309 380 878 935 851 132 226 548 41 Fastest Speed 28 | 50 37 34 32 32 32 28 28 28 28 35 Average Speed 37 | 115 63 43 35 32 34 31 28 28 30 58 Slowest Speed 280 | 120 280 117 117 34 35 37 101 28 101 70 Overloaded Moves . | . . . . . . . . . . . Propulsion Burnouts . | . . . . . . . . . . . Robots Hopped 66 | . 6 1 4 12 11 22 . . 10 . Cave-ins Triggered . | . . . . . . . . . . . Exploration Rate (%) 31 | 4 59 32 35 33 29 28 5 83 12 26 Regions Visited 10 Branch Regions 1 Pre-discovered Areas . | . . . . . . . . . . . Known Exits Taken 5 | . . . 1 1 1 1 . . 1 . Unknown Exits Taken 3 | 1 1 1 . . . . . . . . Scrap Searched . | . . . . . . . . . . . Spaces Dug 15 | . . 15 . . . . . . . . Terrain Destroyed 83 | . . 15 17 12 . 39 . . . . Melee . | . . . . . . . . . . . Projectile 16 | . . 15 1 . . . . . . . AOE 67 | . . . 16 12 . 39 . . . . Actions | -11 -10 -9 -8 -7 -6 -5 -4 -4 -4 -4 --------- Run | Scr Mat Mat Mat Fac Fac Fac Fac Was Fac Ext Total 5386 | 91 385 377 422 911 1164 898 189 236 577 136 Wait 408 | 4 2 38 7 9 235 35 50 8 11 9 Move 4663 | 69 336 306 371 854 912 807 132 225 528 123 Hop 62 | . 5 1 4 11 11 21 . . 9 . Pick Up 41 | 5 8 2 6 8 3 4 . 2 3 . Fast Attach 51 | 4 7 5 7 7 . 10 4 1 3 3 Attach 31 | 2 2 3 4 3 . 7 1 . 8 1 Detach 26 | . 5 3 2 3 1 2 2 . 8 . Swap 10 | . 4 . 4 2 . . . . . . Drop 43 | . 9 4 9 12 2 4 . . 3 . Fire 51 | 7 7 15 8 2 . 8 . . 4 . Melee . | . . . . . . . . . . . Ram . | . . . . . . . . . . . Kick . | . . . . . . . . . . . Crush . | . . . . . . . . . . . Escape Stasis . | . . . . . . . . . . . Rewire . | . . . . . . . . . . . Trap . | . . . . . . . . . . . Miscellaneous . | . . . . . . . . . . . Route ------- -11/Scrapyard -10/Materials (discovered 3 exits: *Mat / [*Min x2]) -9/Materials (discovered 3 exits: *Mat / Min x2) -8/Materials -7/Factory (discovered 5 exits: *Fac x4 / *Low) -6/Factory (discovered 2 exits: *Fac / [*Low]) -5/Factory (discovered 2 exits: *Fac / [*Upp]) -4/Factory -4/Waste -4/Factory -4/Extension History --------- Turn | Location | Event 4 | -11/Scrapyard | Discovered new exit (range 16) 113 | -11/Scrapyard | Entered Materials 113 | -10/Materials | Discovered new exit (range 12) 244 | -10/Materials | Discovered new exit (range 13) 326 | -10/Materials | Build established: Mutant 382 | -10/Materials | Discovered new exit (range 8) 387 | -10/Materials | Entered another Materials area 387 | -9/Materials | Evolved 2 slots: Propulsion x1, Utility x1 445 | -9/Materials | Repaired Lgt. Nuclear Core 552 | -9/Materials | Identified exit to Mines 625 | -9/Materials | Discovered new exit (range 15) 635 | -9/Materials | Entered another Materials area 635 | -8/Materials | Evolved 2 slots: Utility x2 810 | -8/Materials | Discovered new exit (range 17) 838 | -8/Materials | Identified exit to Factory 838 | -8/Materials | Entered Factory 838 | -7/Factory | Evolved 2 slots: Propulsion x1, Utility x1 853 | -7/Factory | Discovered new exit (range 6) 859 | -7/Factory | Identified exit to Lower Caves 1018 | -7/Factory | Build established: Scout 1093 | -7/Factory | Discovered new exit (range 18) 1117 | -7/Factory | Identified exit to Factory 1170 | -7/Factory | Entered another Factory area 1170 | -6/Factory | Evolved 2 slots: Utility x2 1218 | -6/Factory | Repaired Mic. Nuclear Core? 1455 | -6/Factory | Discovered new exit (range 3) 1640 | -6/Factory | Spotted B-75 Beast 1677 | -6/Factory | Discovered new exit (range 4) 1736 | -6/Factory | Identified exit to Factory 1736 | -6/Factory | Entered another Factory area 1736 | -5/Factory | Evolved 2 slots: Power x1, Utility x1 1993 | -5/Factory | Discovered new exit (range 17) 1995 | -5/Factory | Discovered new exit (range 8) 2084 | -5/Factory | Identified exit to Factory 2086 | -5/Factory | Entered another Factory area 2086 | -4/Factory | Evolved 2 slots: Utility x2 2161 | -4/Factory | Repaired Nuclear Pulse Thruster 2182 | -4/Factory | Sucked down chute 2182 | -4/Factory | Entered Waste 2190 | -4/Waste | Spotted C-40 Crusher 2197 | -4/Waste | EMP discharged 2201 | -4/Waste | Spotted C-40 Crusher 2201 | -4/Waste | Spotted C-40 Crusher 2202 | -4/Waste | Spotted C-40 Crusher 2202 | -4/Waste | Spotted C-40 Crusher 2203 | -4/Waste | Spotted C-40 Crusher 2242 | -4/Waste | Discovered new exit (range 19) 2256 | -4/Waste | Identified exit to Factory 2257 | -4/Waste | Entered Factory 2342 | -4/Factory | Fabricated Mic. Nuclear Core? 2465 | -4/Factory | Discovered new exit (range 6) 2466 | -4/Factory | Identified exit to Extension 2466 | -4/Factory | Entered Extension 2484 | -4/Extension | Lost 13 parts (4p4n3u2w) 2537 | -4/Extension | Spotted B-86 Titan 2539 | -4/Extension | Spotted B-86 Titan 2545 | -4/Extension | Core integrity fell below 50% 2551 | -4/Extension | Core integrity fell below 20% 2552 | -4/Extension | Destroyed by H-77 Assassin with Coil Gun Last Messages --------------- 02481_ Acquired Imp. Gyrokinetic Inverter. 02516_ HPNYWB, M 4CQS ECP7WS 02530_ Adv. Terrain Scanner destroyed. 02539_ Penetrated by Slug. 02542_ Q/J0DR/6EJNV5 G/L EELX%&G H=LO|ETBVG9 02544_ B-86 Titan activates siege mode. 02544_ Penetrated by Slug. 02544_ Slug penetrates Wall. 02544_ Penetrated by Slug. 02545_ Imp. Cesium-ion Thruster destroyed. 02547_ Slug penetrates Machine. 02547_ Slug penetrates Y-64 Sentinel. 02550_ Penetrated by Slug. 02550_ Imp. Gyrokinetic Inverter destroyed. 02550_ Slug penetrates Wall. 02552_ Penetrated by Slug. 02552_ Slug penetrates Machine. 02552_ Machine disabled. 02552_ Penetrated by Slug. [Achievement: Just Browsing] Map ----- +----------------------------------------------------+ | ?????????????????????????????????????????????????? | | ?????????????????????????????????????????????????? | | ?????????????????????????????????????????????????? | | ?????????????????????????????????????????????????? | | ?????????????????????????????????????????????????? | | ????????????????? ???????????????????????????????? | | ????????????????? ???????????????????????????????? | | ????????????????? ???????????????????????????????? | | ????????????????? ???????????????????????????????? | | ????????????????? ???????????????????????????????? | | ????????????????? ???????????????????????????????? | | ????????????????? ???????????????????????????????? | | ????????????????? ???????????????????????????????? | | ????????????????? ???????????????????????????????? | | ????????????????# #??????????????????????????????? | | ????????????????# #??????????????????????????????? | | ????????????????+ #??????????????????????????????? | | ????????????????# #??????????????????????????????? | | ????????????????# #??????????????????????????????? | | ????????????????# #??????????????????????????????? | | ????????????????# #??????????#???????????????????? | | ????????????????# #?######?? #???????????????????? | | ??????????????### ### ## ### ###?????????????????? | | ?????????????##"" "" Y " ""#?????????????????? | | ?????????????#; "u"Y " " #?????????????????? | | ?????????????## h @ #?????????????????? | | ??????###?##### h #?????????????????? | | #######"#"#""## #?????????????????? | | ?????????????? | | ??????????? | | ????????? | | u ???????? | | k t tu uR R???????? | | ############### BB BB ###########???????? | | ??????????????# BB BB #?????????????????? | | ??????????????# #?????????????????? | | ??????????????# #?????????????????? | | ??????????????# #?????????????????? | | ??????????????######T#"""#######?????????????????? | | ???????????????????###???????????????????????????? | | ?????????????????????????????????????????????????? | | | | | | | | | | | | | | | | | | | +----------------------------------------------------+ Best States ------------- Heat Dissipation 71 Energy Generation 29 Energy Capacity 365 Matter Stores 300 Matter Capacity 300 Sight Range 20 Robot Scan Range 13 Terrain Scan Range 24 Terrain Scan Density 210 Propulsion Shielding 66 Evasion (%) 76 Targeting Accuracy 5 Particle Charging 20 Offensive Hacking 22 Item Schematics ----------------- Lgt. Assault Rifle | -9/Materials | Scanalyzed Flight Unit | -9/Materials | Scanalyzed Grenade Launcher | -8/Materials | Scanalyzed Mic. Nuclear Core | -6/Factory | Scanalyzed Hacking Suite | -6/Factory | Scanalyzed Robot Schematics ------------------ None Fabricated ------------ Mic. Nuclear Core | x2 | -4/Factory Alien Tech Used ----------------- None Achievements -------------- Dodgeball, But With Guns I Spy Just Browsing Challenges ------------ None Game ------ Seed NuclearKineticFrame Manual? 0 Play Time 01:23:20 Cumulative 17.8 hours Start 2020.03.05 @ 16:52:06 End 2020.03.05 @ 18:16:21 Sessions 1 Manual Loads 0 Difficulty Rogue Special Mode None Game No. 15 Rogue 15 Adventurer 0 Explorer 0 Win Type - Total 0 Types 0/0/0/0/0/0/0 Lore% 12 Gallery% 26 Achievement% 19 Wizard Run 0 Options --------- ASCII 0 Keyboard 1 Movement Vi Keybinds 0 Fullscreen 1 Font 18/SmallcapsGlow Map View 76x50 Tactical HUD 1 Map Filters NONE Filters NONE Steam 0 RUN: 073aeea6-04ac-48a7-b97a-6891d5f6ac4d